bitfinex/quotes_SOLUSD_20250617
["timestamp","ask_amount","ask_price","bid_price","bid_amount"]
[1750183367729,21.25545815,146.53,146.44,23.90045948]
[1750183367730,11.77415085,146.51,146.47,11.77415085]
[1750183368023,11.77415085,146.5,146.46,11.77415085]
[1750183368230,11.91631242,146.49,146.44,6.82862119]
[1750183368437,0.14216157,146.49,146.46,18.60195366]
[1750183368622,0.14216157,146.49,146.47,11.77415085]
[1750183369038,0.14216157,146.49,146.46,18.60195366]
[1750183369639,0.14216157,146.49,146.46,6.82780281]
[1750183369853,6.96868572,146.49,146.41,17.07435145]
[1750183370148,0.42648471,146.47,146.39,18.22555085]
[1750183370345,11.77415085,146.42,146.39,6.83095859]
[1750183370525,11.77415085,146.43,146.39,18.60510944]
[1750183371348,0.42648471,146.44,146.39,18.60510944]
[1750183371532,11.77415085,146.43,146.39,18.60510944]
[1750183374527,0.14216157,146.41,146.38,6.8312595]
[1750183374730,11.77415085,146.4,146.38,6.8312595]
[1750183375230,11.77415085,146.39,146.36,6.83246788]
[1750183376431,11.77415085,146.4,146.36,6.83246788]
[1750183376848,11.77415085,146.39,146.34,6.83340166]
[1750183377070,11.77415085,146.39,146.35,11.77415085]
[1750183377575,11.77415085,146.38,146.34,18.60755251]
[1750183377870,7.2566246,146.41,146.34,6.83340166]
[1750183377871,11.77415085,146.37,146.34,6.83340166]
[1750183378230,11.77415085,146.38,146.34,6.83340166]
[1750183378435,11.77415085,146.38,146.34,18.60755251]
[1750183379050,11.77415085,146.37,146.34,6.83340166]
[1750183379565,147.9,146.4,146.36,11.77415085]
[1750183379737,147.9,146.4,146.37,11.77415085]
[1750183379937,159.67415085,146.4,146.36,11.77415085]
[1750183380236,159.67415085,146.4,146.34,23.91690582]
[1750183380454,159.67415085,146.4,146.36,11.77415085]
[1750183380960,159.67415085,146.4,146.36,18.60628999]
[1750183381471,147.9,146.4,146.39,11.77415085]
[1750183381656,147.9,146.4,146.38,11.77415085]
[1750183382346,11.77415085,146.39,146.36,6.83213914]
[1750183382554,159.67415085,146.4,146.36,18.60628999]
[1750183382754,147.9,146.4,146.36,18.60628999]
[1750183383066,147.9,146.4,146.38,18.60568521]
[1750183383444,147.9,146.4,146.39,11.77415085]
[1750183383647,147.9,146.4,146.38,18.60568521]
[1750183385381,147.9,146.4,146.35,18.60708559]
[1750183385382,159.67415085,146.4,146.35,18.60708559]
[1750183385542,147.9,146.39,146.36,11.77415085]
[1750183386267,159.67415085,146.39,146.35,18.60708559]
[1750183386958,147.9,146.39,146.36,11.77415085]
[1750183387546,147.9,146.39,146.37,6.83200109]
[1750183387982,159.67415085,146.39,146.36,6.83230058]
[1750183388157,147.9,146.39,146.36,6.83230058]
[1750183388584,147.9,146.39,146.37,11.77415085]
[1750183389095,147.9,146.39,146.36,18.60645143]
[1750183389598,147.9,146.39,146.36,6.83230058]
[1750183389890,147.9,146.39,146.36,18.60645143]
[1750183390269,159.67415085,146.39,146.36,6.83230058]
[1750183390476,11.77415085,146.38,146.35,6.83275517]
[1750183390891,11.77415085,146.38,146.33,6.83386865]
[1750183390892,11.77415085,146.36,146.33,6.83386865]
[1750183391401,159.81631242,146.37,146.33,6.83386865]
[1750183391697,159.81631242,146.37,146.33,18.6080195]
[1750183392578,159.81631242,146.37,146.33,6.83386865]
[1750183393198,148.04216157,146.37,146.33,18.6080195]
[1750183393498,159.81631242,146.37,146.33,18.6080195]
[1750183394197,159.81631242,146.37,146.33,6.83386865]
[1750183395102,159.81631242,146.37,146.33,18.6080195]
[1750183395291,147.9,146.36,146.33,18.6080195]
[1750183398089,147.9,146.36,146.34,11.77415085]
[1750183399295,147.9,146.36,146.35,6.83293474]
[1750183400213,147.9,146.4,146.35,35.68942245]
[1750183400376,147.9,146.43,146.39,11.77415085]
[1750183400575,0.14216157,146.42,146.4,11.77415085]
[1750183400802,0.14216157,146.42,146.39,11.77415085]
[1750183401480,11.77415085,146.42,146.37,11.77415085]
[1750183401690,12.20063556,146.42,146.37,11.77415085]
[1750183401883,12.20063556,146.42,146.38,11.77415085]
[1750183402083,0.42648471,146.42,146.38,11.77415085]
[1750183402978,0.42648471,146.42,146.39,11.77415085]
[1750183403810,0.14216157,146.42,146.39,11.77415085]
[1750183404111,147.9,146.43,146.41,11.77415085]
[1750183404409,147.9,146.43,146.42,11.77415085]
[1750183404917,147.9,146.43,146.42,18.60381892]
[1750183405115,147.9,146.43,146.42,6.82966807]
[1750183405699,147.9,146.43,146.42,18.60381892]
[1750183406689,11.77415085,146.52,146.43,26.68974886]
[1750183406690,147.9,146.49,146.43,26.68974886]
[1750183406914,147.9,146.49,146.48,18.60102141]
[1750183407109,159.67415085,146.49,146.43,8.0401]
[1750183407416,159.67415085,146.49,146.45,11.77415085]
[1750183407417,147.9,146.49,146.45,11.77415085]
[1750183407583,147.9,146.49,146.46,11.77415085]
[1750183408215,147.9,146.49,146.47,11.77415085]
[1750183408812,147.9,146.49,146.44,23.9005736]
[1750183408813,147.9,146.49,146.46,11.77415085]
[1750183409114,147.9,146.49,146.46,18.60159595]
[1750183409826,159.67415085,146.49,146.45,18.60226399]
[1750183409978,11.77415085,146.46,146.42,11.77415085]
[1750183410179,11.77415085,146.46,146.39,26.81644886]
[1750183410180,11.77415085,146.44,146.39,17.07766597]
[1750183410491,11.77415085,146.42,146.38,11.77415085]
[1750183410694,11.77415085,146.41,146.37,6.83200109]
[1750183411021,11.77415085,146.38,146.33,18.6080195]
[1750183411190,11.77415085,146.38,146.34,11.77415085]
[1750183411389,11.77415085,146.38,146.33,6.83386865]
[1750183411704,11.77415085,146.37,146.33,18.6080195]
[1750183413094,11.91631242,146.38,146.35,6.83293474]
[1750183413299,0.14216157,146.38,146.35,6.83293474]
[1750183413504,11.91631242,146.38,146.35,6.83293474]
[1750183414431,11.77415085,146.37,146.35,6.83293474]
[1750183415431,11.91631242,146.38,146.34,6.83340166]
[1750183415647,11.91631242,146.38,146.34,18.60755251]
[1750183416119,11.91631242,146.38,146.34,6.83340166]
[1750183416318,11.91631242,146.38,146.34,18.60755251]
[1750183417132,0.14216157,146.38,146.35,11.77415085]
[1750183417426,28.68,146.39,146.35,11.77415085]
[1750183417734,11.77415085,146.38,146.34,18.60755251]
[1750183417896,11.77415085,146.38,146.34,6.83340166]
[1750183418096,11.77415085,146.38,146.34,18.60755251]
[1750183418499,12.35123505,146.4,146.31,11.77415085]
[1750183418500,11.77415085,146.35,146.31,11.77415085]
[1750183418817,11.77415085,146.34,146.29,28.86235953]
[1750183419025,11.77415085,146.33,146.3,6.83526999]
[1750183419848,11.77415085,146.32,146.29,6.83555705]
[1750183420009,11.77415085,146.31,146.29,6.83555705]
[1750183420324,11.77415085,146.32,146.29,6.83555705]
[1750183421234,0.14216157,146.33,146.29,6.83555705]
[1750183421417,11.91631242,146.33,146.29,6.83555705]
[1750183421627,11.77415085,146.32,146.29,6.83555705]
[1750183421830,0.14216157,146.33,146.27,6.8366719]
[1750183421831,11.77415085,146.31,146.27,6.8366719]
[1750183422049,11.77415085,146.31,146.24,20.31254886]
[1750183422050,11.77415085,146.28,146.25,6.83760683]
[1750183422614,11.77415085,146.29,146.25,6.83760683]
[1750183422819,11.77415085,146.29,146.25,18.61175768]
[1750183423937,11.91631242,146.3,146.25,18.61175768]
[1750183424338,0.42648471,146.32,146.28,11.77415085]
[1750183424908,37.77415085,146.33,146.29,11.77415085]
[1750183425237,11.77415085,146.34,146.3,6.83526999]
[1750183425638,11.77415085,146.33,146.3,6.83526999]
[1750183425954,0.14216157,146.32,146.3,6.83526999]
[1750183427036,0.14216157,146.32,146.29,18.60988808]
[1750183427623,0.14216157,146.32,146.29,6.83573723]
[1750183427937,11.91631242,146.31,146.28,6.83608999]
[1750183428519,0.14216157,146.31,146.28,6.83608999]
[1750183428943,11.77415085,146.3,146.27,6.83650634]
[1750183429738,11.91631242,146.31,146.27,6.83650634]
[1750183430739,11.77415085,146.3,146.26,18.61108141]
[1750183431143,11.77415085,146.28,146.24,18.61222524]
[1750183431530,11.77415085,146.28,146.24,6.83807439]
[1750183431742,11.77415085,146.28,146.24,18.61222524]
[1750183432035,0.14216157,146.28,146.23,6.83854202]
[1750183432242,11.91631242,146.28,146.24,11.77415085]
[1750183433631,11.91631242,146.28,146.23,6.83854202]
[1750183433837,0.14216157,146.28,146.24,11.77415085]
[1750183434033,11.91631242,146.28,146.25,6.83760683]
[1750183434234,11.91631242,146.28,146.22,1.0]
[1750183434235,11.91631242,146.26,146.22,1.0]
[1750183434539,0.14216157,146.26,146.22,1.0]
[1750183434720,11.77415085,146.25,146.22,1.0]
[1750183435247,147.9,146.27,146.24,11.77415085]
[1750183435454,147.9,146.27,146.26,11.77415085]
[1750183435655,147.9,146.32,146.26,11.77415085]
[1750183435843,0.14216157,146.31,146.28,11.77415085]
[1750183436022,0.14216157,146.31,146.29,6.83573723]
[1750183436848,0.14216157,146.31,146.29,18.60988808]
[1750183437649,0.14216157,146.31,146.29,6.83573723]
[1750183440768,0.14216157,146.31,146.25,23.93161894]
[1750183440925,147.9,146.3,146.27,11.77415085]
[1750183441343,147.9,146.3,146.28,11.77415085]
[1750183441525,147.9,146.3,146.25,23.93161894]
[1750183441526,26.0,146.33,146.29,11.77415085]
[1750183441729,26.0,146.33,146.31,11.77415085]
[1750183441955,0.14216157,146.35,146.32,11.77415085]
[1750183442228,0.14216157,146.35,146.27,18.64964886]
[1750183442229,147.9,146.37,146.33,11.77415085]
[1750183442429,0.14216157,146.34,146.3,11.77415085]
[1750183442624,0.14216157,146.34,146.27,44.64964886]
[1750183442625,0.14216157,146.34,146.31,11.77415085]
[1750183443157,147.9,146.37,146.33,11.77415085]
[1750183443358,0.14216157,146.36,146.34,11.77415085]
[1750183443554,147.9,146.37,146.29,6.2471]
[1750183443750,0.14216157,146.36,146.33,11.77415085]
[1750183444163,147.9,146.37,146.33,11.77415085]
[1750183444337,147.9,146.37,146.35,11.77415085]
[1750183444536,147.9,146.37,146.34,11.77415085]
[1750183444741,147.9,146.37,146.35,11.77415085]
[1750183444959,147.9,146.37,146.34,11.77415085]
[1750183445467,11.77415085,146.35,146.31,6.83480281]
[1750183445635,11.77415085,146.33,146.29,11.77415085]
[1750183445834,0.42648471,146.36,146.28,18.64964886]
[1750183446142,0.42648471,146.36,146.32,11.77415085]
[1750183446143,11.91631242,146.36,146.32,11.77415085]
[1750183446353,0.42648471,146.36,146.31,11.77415085]
[1750183446542,12.20063556,146.36,146.31,11.77415085]
[1750183446769,12.20063556,146.36,146.32,6.8343357]
[1750183447164,11.77415085,146.35,146.32,6.8343357]
[1750183447460,37.91631242,146.34,146.3,11.77415085]
[1750183447637,11.77415085,146.33,146.28,18.61035538]
[1750183447841,11.77415085,146.32,146.28,18.61035538]
[1750183448152,147.9,146.31,146.28,6.83620453]
[1750183448348,147.9,146.31,146.28,18.61035538]
[1750183449156,147.9,146.31,146.3,11.77415085]
[1750183449364,147.9,146.31,146.28,18.61035538]
[1750183449956,147.9,146.31,146.29,11.77415085]
[1750183450542,147.9,146.31,146.28,6.83620453]
[1750183450744,147.9,146.31,146.28,18.61035538]
[1750183451358,159.67415085,146.31,146.27,6.83652926]
[1750183451544,11.91631242,146.3,146.24,6.83807439]
[1750183451743,147.9,146.31,146.29,11.77415085]
[1750183451942,147.9,146.31,146.28,11.77415085]
[1750183452143,159.67415085,146.31,146.24,23.93326038]
[1750183452365,159.67415085,146.31,146.27,11.77415085]
[1750183452562,147.9,146.31,146.28,11.77415085]
[1750183452988,147.9,146.31,146.28,18.61006119]
[1750183453171,147.9,146.31,146.28,6.83591034]
[1750183453373,147.9,146.31,146.28,18.61006119]
[1750183454792,147.9,146.31,146.3,11.77415085]
[1750183454950,147.9,146.31,146.3,18.60942084]
[1750183455964,147.9,146.38,146.31,18.64964886]
[1750183456163,147.9,146.38,146.35,11.77415085]
[1750183456465,147.9,146.38,146.3,23.92344497]
[1750183456466,11.91631242,146.37,146.3,23.92344497]
[1750183456665,11.77415085,146.36,146.32,11.77415085]
[1750183456855,11.77415085,146.36,146.32,18.6081729]
[1750183458876,40.59631242,146.37,146.33,11.77415085]
[1750183459177,40.59631242,146.37,146.32,11.77415085]
[1750183459967,11.77415085,146.36,146.3,23.92344497]
[1750183460278,11.77415085,146.36,146.32,11.77415085]
[1750183460473,40.59631242,146.37,146.32,11.77415085]
[1750183461180,40.59631242,146.37,146.33,18.6080195]
[1750183461181,28.82216157,146.37,146.33,18.6080195]
[1750183461352,147.9,146.36,146.33,18.6080195]
[1750183462279,147.9,146.36,146.33,6.83386865]
[1750183462793,159.67415085,146.36,146.32,18.60830337]
[1750183463081,147.9,146.36,146.33,11.77415085]
[1750183464177,147.9,146.36,146.33,18.60763166]
[1750183465280,147.9,146.36,146.33,6.83348081]
[1750183465491,11.77415085,146.35,146.32,6.83422121]
[1750183465795,159.67415085,146.36,146.32,6.83422121]
[1750183466161,147.9,146.35,146.32,6.83422121]
[1750183466576,147.9,146.35,146.33,11.77415085]
[1750183466968,147.9,146.35,146.32,11.77415085]
[1750183468577,147.9,146.35,146.33,18.6080195]
[1750183468771,147.9,146.35,146.34,23.5483017]
[1750183469092,14.71313653,146.43,146.34,7.8551]
[1750183469093,154.76257038,146.41,146.34,7.8551]
[1750183469385,6.86257038,146.39,146.35,6.86257038]
[1750183469589,147.9,146.38,146.35,6.86257038]
[1750183469768,147.9,146.38,146.36,6.86257038]
[1750183469967,147.9,146.38,146.35,6.86257038]
[1750183470766,147.9,146.38,146.36,6.83246788]
[1750183472990,147.9,146.38,146.36,13.69503826]
[1750183474079,147.9,146.38,146.36,6.83246788]
[1750183474903,147.9,146.38,146.35,13.69530344]
[1750183475291,154.76257038,146.38,146.35,6.83273306]
[1750183475594,147.9,146.38,146.35,6.83273306]
[1750183475976,147.9,146.37,146.34,6.86257038]
[1750183476172,147.9,146.37,146.35,6.86257038]
[1750183476670,147.9,146.37,146.34,6.86257038]
[1750183476873,154.76257038,146.37,146.33,6.83386865]
[1750183477189,154.76257038,146.36,146.32,6.86257038]
[1750183477702,154.76257038,146.36,146.31,6.83480281]
[1750183478000,154.76257038,146.36,146.32,6.86257038]
[1750183478886,147.9,146.36,146.33,6.86257038]
[1750183479195,147.9,146.35,146.33,6.86257038]
[1750183479381,147.9,146.35,146.31,6.83480281]
[1750183479585,147.9,146.35,146.32,6.86257038]
[1750183479975,147.9,146.35,146.31,13.69737319]
[1750183480907,147.9,146.35,146.33,6.83386865]
[1750183481831,26.0,146.38,146.34,6.86257038]
[1750183481977,147.9,146.4,146.36,6.86257038]
[1750183481978,154.76257038,146.4,146.36,6.86257038]
[1750183482172,147.9,146.4,146.33,23.91854028]
[1750183482376,147.9,146.4,146.38,6.86257038]
[1750183482794,27.71710691,146.43,146.39,6.86257038]
[1750183483100,0.14216157,146.42,146.39,13.6933032]
[1750183483305,5.23714814,146.42,146.39,13.6933032]
[1750183484390,5.09498657,146.42,146.39,13.6933032]
[1750183484801,5.09498657,146.42,146.41,6.86257038]
[1750183485003,13.19733653,146.43,146.41,6.86257038]
[1750183485212,18.29311734,146.43,146.4,13.69274483]
[1750183486081,13.19733653,146.43,146.4,13.69274483]
[1750183486385,25.15568772,146.43,146.39,13.69348868]
[1750183486795,147.9,146.42,146.39,13.69348868]
[1750183487107,147.9,146.42,146.4,6.86257038]
[1750183487305,147.9,146.42,146.41,6.86257038]
[1750183487623,13.19733653,146.43,146.41,6.86257038]
[1750183487794,13.19733653,146.43,146.42,31.57371924]
[1750183487983,13.19733653,146.43,146.42,44.85628962]
[1750183488202,147.9,146.5,146.43,18.64964886]
[1750183488518,147.9,146.5,146.47,6.86257038]
[1750183488941,147.9,146.5,146.44,6.82873531]
[1750183489097,147.9,146.5,146.47,11.75128292]
[1750183489923,147.9,146.5,146.49,11.75128292]
[1750183490097,147.9,146.5,146.48,11.75128292]
[1750183491729,147.9,146.5,146.49,11.75128292]
[1750183492233,42.73559095,146.54,146.49,11.75128292]
[1750183492234,14.09559095,146.54,146.49,11.75128292]
[1750183492534,14.09559095,146.54,146.52,11.75128292]
[1750183493335,14.09559095,146.54,146.52,18.57622115]
[1750183493634,14.09559095,146.54,146.53,11.75128292]
[1750183494724,14.09559095,146.54,146.5,6.82593856]
[1750183494914,0.14216157,146.53,146.5,11.75128292]
[1750183495109,0.14216157,146.53,146.48,6.82687056]
[1750183495323,0.14216157,146.53,146.5,11.75128292]
[1750183495728,11.89344449,146.53,146.48,6.82687056]
[1750183495906,11.89344449,146.5,146.46,11.75128292]
[1750183496104,0.14216157,146.5,146.47,11.75128292]
[1750183496306,0.14216157,146.51,146.48,11.75128292]
[1750183496914,11.89344449,146.51,146.47,11.75128292]
[1750183497112,0.14216157,146.51,146.47,11.75128292]
[1750183497333,11.89344449,146.51,146.47,11.75128292]
[1750183497913,0.14216157,146.51,146.48,11.75128292]
[1750183499215,0.14216157,146.51,146.48,18.57808599]
[1750183500129,0.14216157,146.51,146.48,6.82680307]
[1750183500326,0.14216157,146.52,146.49,11.75128292]
[1750183500848,11.89344449,146.52,146.48,18.57808599]
[1750183501221,26.0,146.53,146.5,6.82593856]
[1750183501519,192.56211409,146.54,146.5,18.57722148]
[1750183501520,161.99559095,146.54,146.5,18.57722148]
[1750183501724,161.99559095,146.54,146.52,11.75128292]
[1750183502148,161.99559095,146.54,146.5,6.82593856]
[1750183502149,161.99559095,146.54,146.51,11.75128292]
[1750183502353,161.99559095,146.54,146.52,11.75128292]
[1750183502937,14.09559095,146.54,146.52,11.75128292]
[1750183503232,14.09559095,146.54,146.53,11.75128292]
[1750183503918,14.09559095,146.54,146.51,23.88915431]
[1750183504112,14.09559095,146.54,146.53,11.75128292]
[1750183504751,0.14216157,146.6,146.53,11.75128292]
[1750183504936,0.14216157,146.6,146.57,11.75128292]
[1750183505120,37.75128292,146.61,146.57,11.75128292]
[1750183505312,26.0,146.61,146.57,18.57358843]
[1750183505511,0.14216157,146.6,146.57,18.57358843]
[1750183506044,0.14216157,146.6,146.58,11.75128292]
[1750183506436,6.81911807,146.65,146.59,11.75128292]
[1750183506738,0.14216157,146.62,146.57,6.82230551]
[1750183507040,0.14216157,146.62,146.58,11.75128292]
[1750183507250,0.14216157,146.62,146.55,18.660594]
[1750183507251,26.14216157,146.62,146.59,18.57285025]
[1750183507424,26.0,146.62,146.6,11.75128292]
[1750183507626,11.75128292,146.64,146.6,11.75128292]
[1750183507831,0.14216157,146.63,146.6,11.75128292]
[1750183508235,11.89344449,146.63,146.58,6.82203522]
[1750183508435,0.14216157,146.6,146.56,6.8231441]
[1750183508652,0.14216157,146.6,146.55,1.6027]
[1750183508653,11.75128292,146.58,146.54,11.75128292]
[1750183508858,0.14216157,146.58,146.55,11.75128292]
[1750183509018,0.14216157,146.58,146.52,23.88752388]
[1750183509356,0.14216157,146.58,146.55,18.57489193]
[1750183509516,0.14216157,146.58,146.56,11.75128292]
[1750183510364,0.42648471,146.6,146.57,11.75128292]
[1750183510570,0.42648471,146.6,146.55,6.82360901]
[1750183510764,12.17776763,146.6,146.55,6.82360901]
[1750183510940,0.14216157,146.58,146.53,6.82454104]
[1750183511126,78.49142692,146.62,146.57,11.75128292]
[1750183511127,39.3133471,146.62,146.57,11.75128292]
[1750183511333,12.17776763,146.61,146.57,11.75128292]
[1750183511534,12.17776763,146.61,146.57,18.5737494]
[1750183511731,0.14216157,146.63,146.59,11.75128292]
[1750183511954,11.75128292,146.64,146.59,11.75128292]
[1750183512334,0.42648471,146.63,146.59,11.75128292]
[1750183512846,12.03560606,146.63,146.59,11.75128292]
[1750183513045,0.28432314,146.63,146.59,11.75128292]
[1750183514131,12.03560606,146.63,146.59,11.75128292]
[1750183514432,0.28432314,146.63,146.59,11.75128292]
[1750183514630,12.03560606,146.64,146.6,11.75128292]
[1750183514862,0.14216157,146.63,146.6,11.75128292]
[1750183515044,0.14216157,146.63,146.6,18.57256483]
[1750183515773,0.28432314,146.62,146.56,18.57437603]
[1750183515970,11.75128292,146.59,146.54,18.57535825]
[1750183516257,11.75128292,146.59,146.55,11.75128292]
[1750183516458,37.89344449,146.6,146.55,11.75128292]
[1750183517341,37.89344449,146.6,146.55,18.57461101]
[1750183517570,44.71483688,146.6,146.55,18.57461101]
[1750183518271,37.89344449,146.6,146.56,11.75128292]
[1750183518439,44.7147744,146.6,146.55,18.57461101]
[1750183518856,11.75128292,146.59,146.55,18.57461101]
[1750183519161,37.89344449,146.6,146.56,11.75128292]
[1750183519353,11.75128292,146.59,146.55,11.75128292]
[1750183519541,0.42648471,146.58,146.53,12.88625366]
[1750183519747,11.75128292,146.57,146.52,11.75128292]
[1750183520343,0.14216157,146.57,146.52,11.75128292]
[1750183520742,0.14216157,146.57,146.53,6.82454104]
[1750183521054,11.75128292,146.56,146.53,6.82454104]
[1750183521570,0.14216157,146.57,146.53,6.82454104]
[1750183521742,0.14216157,146.57,146.53,18.57582396]
[1750183522062,11.89344449,146.57,146.53,18.57582396]
[1750183523847,147.9,146.58,146.55,11.75128292]
[1750183524243,147.9,146.58,146.56,11.75128292]
[1750183524462,147.9,146.58,146.53,23.88589366]
[1750183524765,17.04964599,146.64,146.53,23.88589366]
[1750183524766,149.4637,146.63,146.57,11.75128292]
[1750183524964,11.75128292,146.59,146.55,11.75128292]
[1750183525267,11.75128292,146.57,146.53,18.57582396]
[1750183526254,11.89344449,146.58,146.54,11.75128292]
[1750183526655,11.89344449,146.58,146.53,18.57582396]
[1750183526864,7.27537548,146.58,146.53,13.67343181]
[1750183527267,6.82203448,146.59,146.57,6.84889077]
[1750183527268,0.14216157,146.59,146.57,6.84889077]
[1750183527652,0.14216157,146.59,146.56,13.67203285]
[1750183527847,6.84889077,146.57,146.54,6.82407533]
[1750183528160,7.27537548,146.59,146.54,13.6729661]
[1750183528953,6.84889077,146.58,146.54,6.82407533]
[1750183529173,0.14216157,146.58,146.54,6.82407533]
[1750183529395,6.99105234,146.58,146.54,13.6729661]
[1750183529685,6.99105234,146.58,146.54,6.82407533]
[1750183530182,147.9,146.57,146.54,13.6729661]
[1750183532391,26.0,146.59,146.56,6.84889077]
[1750183532765,26.0,146.59,146.57,6.84889077]
[1750183533267,0.14216157,146.6,146.57,6.84889077]
[1750183533471,0.14216157,146.6,146.54,23.88426367]
[1750183533670,0.14216157,146.6,146.57,6.84889077]
[1750183533858,5.22536765,146.6,146.57,6.84889077]
[1750183534286,5.22536765,146.6,146.57,13.67123736]
[1750183534494,0.14216157,146.6,146.57,6.82234659]
[1750183534698,0.14216157,146.6,146.57,13.67123736]
[1750183534989,5.08528476,146.59,146.57,6.82234659]
[1750183536392,6.99105234,146.6,146.57,6.82234659]
[1750183536592,5.08850196,146.59,146.56,13.67182942]
[1750183536762,6.99105234,146.6,146.56,13.67182942]
[1750183536960,5.0885027,146.59,146.56,13.67182942]
[1750183537160,5.08910541,146.59,146.56,13.67182942]
[1750183537891,11.93799618,146.59,146.52,35.71216031]
[1750183538061,6.84889077,146.59,146.55,6.84889077]
[1750183538258,0.14216157,146.58,146.52,6.82500682]
[1750183538577,6.84889077,146.56,146.52,13.67389759]
[1750183538788,6.99105234,146.55,146.5,6.82593856]
[1750183538965,6.84889077,146.53,146.5,6.82593856]
[1750183539162,32.99105234,146.55,146.5,13.67482933]
[1750183539364,6.84889077,146.54,146.5,13.67482933]
[1750183539565,32.99105234,146.55,146.51,6.84889077]
[1750183539980,38.08136741,146.55,146.51,6.84889077]
[1750183540176,6.84889077,146.54,146.51,6.82503141]
[1750183540509,31.09031507,146.55,146.52,6.84889077]
[1750183540705,8.43979077,146.61,146.54,6.84889077]
[1750183540997,5.09033048,146.6,146.57,6.84889077]
[1750183541171,5.09033048,146.59,146.57,6.84889077]
[1750183541497,5.09033048,146.6,146.57,6.84889077]
[1750183541675,5.09033048,146.59,146.57,6.84889077]
[1750183541871,5.09033048,146.6,146.57,6.84889077]
[1750183542077,5.09033048,146.59,146.57,13.67144883]
[1750183542305,5.09033048,146.6,146.57,13.67144883]
[1750183542598,5.09033048,146.59,146.56,6.84889077]
[1750183542897,5.09033048,146.6,146.57,6.84889077]
[1750183543411,5.09033048,146.59,146.57,6.84889077]
[1750183543593,26.0,146.61,146.58,6.84889077]
[1750183543594,5.09033048,146.6,146.58,6.84889077]
[1750183544312,5.09033048,146.6,146.58,13.670983]
[1750183544485,31.09877114,146.61,146.59,6.84889077]
[1750183544695,26.0,146.61,146.59,6.84889077]
[1750183544883,31.09877114,146.61,146.59,6.84889077]
[1750183545076,26.0,146.61,146.59,6.84889077]
[1750183545302,5.09877114,146.61,146.59,6.84889077]
[1750183545491,5.09877114,146.62,146.59,6.84889077]
[1750183545692,5.09877114,146.61,146.59,6.84889077]
[1750183545890,5.09877114,146.62,146.59,6.84889077]
[1750183546192,5.09877114,146.61,146.59,6.84889077]
[1750183546390,5.09877114,146.62,146.59,13.67029127]
[1750183546605,5.09953132,146.61,146.59,13.67029127]
[1750183546904,0.14216157,146.62,146.59,13.67029127]
[1750183547101,5.09953132,146.61,146.59,13.67029127]
[1750183548109,1.91952314,146.64,146.6,6.84889077]
[1750183548110,5.09953132,146.63,146.6,6.84889077]
[1750183548313,5.09953132,146.62,146.6,6.84889077]
[1750183548603,0.14216157,146.63,146.6,13.66980984]
[1750183548811,5.09971427,146.62,146.6,13.66980984]
[1750183549108,5.09971427,146.62,146.6,6.82091907]
[1750183549817,0.14216157,146.63,146.6,6.82091907]
[1750183550116,0.14216157,146.63,146.59,13.67043482]
[1750183550421,5.09903309,146.62,146.59,13.67043482]
[1750183550584,5.24119466,146.63,146.6,6.84889077]
[1750183550986,5.09903309,146.63,146.61,6.84889077]
[1750183551181,5.09903309,146.64,146.61,6.84889077]
[1750183551412,5.09903309,146.64,146.62,6.84889077]
[1750183551711,26.0,146.65,146.62,6.84889077]
[1750183551712,31.09903309,146.65,146.62,6.84889077]
[1750183552283,5.09903309,146.65,146.63,6.84889077]
[1750183552500,147.9,146.66,146.63,6.84889077]
[1750183552910,147.9,146.66,146.64,6.84889077]
[1750183553612,147.9,146.66,146.65,6.84889077]
[1750183553987,0.14216157,146.69,146.65,6.84889077]
[1750183554204,0.14216157,146.69,146.67,6.84889077]
[1750183554205,5.09188896,146.69,146.67,6.84889077]
[1750183554425,5.09188896,146.7,146.66,6.84889077]
[1750183554630,11.94077973,146.7,146.66,6.84889077]
[1750183554832,6.84889077,146.67,146.63,13.66877755]
[1750183554987,26.0,146.68,146.65,6.84889077]
[1750183555192,5.09188896,146.69,146.66,6.84889077]
[1750183555511,5.09188896,146.7,146.66,6.84889077]
[1750183556524,0.14216157,146.7,146.67,6.81802686]
[1750183557309,6.99105234,146.7,146.67,6.81802686]
[1750183558017,0.14216157,146.7,146.67,6.81802686]
[1750183558314,0.14216157,146.7,146.67,13.66691763]
[1750183558535,32.84889077,146.71,146.67,13.66691763]
[1750183558825,26.0,146.71,146.67,13.66691763]
[1750183559211,26.0,146.71,146.68,6.84889077]
[1750183559514,0.42648471,146.73,146.69,6.84889077]
[1750183559718,7.27537548,146.73,146.67,6.81802686]
[1750183559889,6.84889077,146.72,146.67,13.66691763]
[1750183560089,7.27537548,146.73,146.68,6.84889077]
[1750183560302,7.27537548,146.73,146.67,6.81802686]
[1750183560497,7.27537548,146.73,146.69,6.81709727]
[1750183561111,6.84889077,146.7,146.66,6.81849174]